Cogmind - Beta 13 @@@ ROGUE MODE // 2024.04.24 @ 05:20:18 Player: Sunrosa Result: Self-destructed Performance ------------- Evolutions (5) 2500 Regions Visited (13) 2600 Robots Destroyed (270) 1350 Value Destroyed (9612) 9612 Prototype IDs (9) 180 Alien Tech Used (0) 0 Bonus (1858) 1858 TOTAL SCORE: 18100 Bonus ------- High Alert Combat Kills 1493 Follower Combat Kills 91 Aligned with FarCom 300 Friendly Fire -26 Cogmind --------- Core Integrity 61/1000 Matter 58/300 Energy 99/100 System Corruption 0% Temperature Cool (0) Movement Core (50) Location -5/Factory Parts ------- > --- POWER (2) -------- (None) > --- PROPULSION (3) --- (None) > --- UTILITY (6) ------ (None) > --- WEAPON (6) ------- (None) > --- INVENTORY (5) ---- Hardened Heavy Armor Plating Gauss Rifle Greatsword Peak State ------------ > --- POWER ------------ Light Angular Momentum Engine Light Antimatter Reactor > --- PROPULSION ------- Armored Treads Medium Treads Improved Medium Treads > --- UTILITY ---------- Improved Cooling System Huge Storage Unit 0b10 Decoder Chip [Generic] Improved Heavy Armor Plating Force Field > --- WEAPON ----------- Antimatter Cannon Antimatter Cannon Antimatter Cannon AWS/Autocannon > --- INVENTORY -------- Reinforced Deuterium Engine Angular Momentum Engine Light Angular Momentum Engine Medium Treads Compact Wheel Compact Wheel Improved Heat Sink Matter Compressor Advanced ECM Suite Hardened Medium Armor Plating Hardened Heavy Armor Plating Dynamic Insulation System Improved EM Pulse Cannon Gauss Rifle Gauss Rifle Flak Gun Precision Assault Rifle Magnetic Acceleration Cannon Heavy Flak Cannon Heavy Flak Cannon Greatsword [Rating: 106] Favorites ----------- Power Light Nuclear Core Engine Improved Deuterium Engine Power Core Light Nuclear Core Reactor Light Antimatter Reactor Propulsion Compact Wheel Treads Advanced Treads Leg Aluminum Leg Wheel Compact Wheel Utility Huge Storage Unit Device Improved Cooling System Storage Huge Storage Unit Processor 0b10 Decoder Chip [Generic] Hackware Hacking Suite Protection Improved Light Armor Plating Weapon Gauss Cannon Energy Gun Small Laser Energy Cannon Heavy Ion Cannon Ballistic Gun Gauss Rifle Ballistic Cannon Gauss Cannon Launcher Missile Launcher Build | -11 -10 -9 -9 -9 -8 -8 -7 -7 -7 -6 -6 -6 -5 ------- Run | Yrd Mat Mat Min Exi Min Mat Fac Low Low Fac Low Low Fac Slots Evolved 10 | . . 2 . . . 2 2 . . 2 . . 2 Power 1 | . . . . . . . 1 . . . . . . Propulsion 1 | . . . . . . 1 . . . . . . . Utility 4 | . . 1 . . . 1 1 . . 1 . . . Weapon 4 | . . 1 . . . . . . . 1 . . 2 Parts Attached 311 | 4 27 54 7 5 7 49 43 5 6 77 3 . 24 Power 24 | . 3 3 1 . 1 2 3 . 1 6 1 . 3 Engine 15 | . 3 3 1 . . 1 2 . . 3 1 . 1 Core 7 | . . . . . 1 1 1 . 1 2 . . 1 Reactor 2 | . . . . . . . . . . 1 . . 1 Propulsion 186 | 2 22 41 4 . 6 28 30 3 1 37 . . 12 Treads 94 | 1 11 20 2 . 3 14 16 1 1 17 . . 8 Leg . | . . . . . . . . . . . . . . Wheel 92 | 1 11 21 2 . 3 14 14 2 . 20 . . 4 Hover . | . . . . . . . . . . . . . . Flight . | . . . . . . . . . . . . . . Utility 38 | 1 1 3 2 1 . 5 5 . . 14 2 . 4 Device 19 | 1 . . 2 . . 2 3 . . 7 . . 4 Storage 3 | . 1 . . . . . . . . 2 . . . Processor 1 | . . . . . . . . . . . 1 . . Hackware 2 | . . . . . . 1 . . . 1 . . . Protection 13 | . . 3 . 1 . 2 2 . . 4 1 . . Artifact . | . . . . . . . . . . . . . . Weapon 63 | 1 1 7 . 4 . 14 5 2 4 20 . . 5 Energy Gun 2 | . . . . . . . . . 1 1 . . . Energy Cannon 4 | . . . . . . . 1 . 1 1 . . 1 Ballistic Gun 17 | 1 1 6 . . . 5 1 . 1 2 . . . Ballistic Cannon 26 | . . 1 . 4 . 3 2 1 . 11 . . 4 Launcher 14 | . . . . . . 6 1 1 1 5 . . . Special Weapon . | . . . . . . . . . . . . . . Impact Weapon . | . . . . . . . . . . . . . . Slashing Weapon . | . . . . . . . . . . . . . . Piercing Weapon . | . . . . . . . . . . . . . . Special Melee Weapon . | . . . . . . . . . . . . . . Unidentified Prototypes 2 | . . . . 1 . . . . . 1 . . . Parts Lost 22 | . 2 1 . . . 1 1 1 1 8 . . 7 Power 5 | . 1 . . . . . . . . 2 . . 2 Propulsion 8 | . . . . . . . 1 1 1 2 . . 3 Utility 4 | . . . . . . 1 . . . 2 . . 1 Weapon 5 | . 1 1 . . . . . . . 2 . . 1 Highest Loss Streak 6 | . 1 1 . . . 1 1 1 1 6 . . 2 To Critical Strikes . | . . . . . . . . . . . . . . Average Slot Usage (%) 95 | . 99 99 100 98 100 99 99 99 96 91 80 80 80 Engine 6 | . 13 11 11 11 2 1 2 15 12 6 6 6 4 Core 4 | . . . . . 8 7 11 . 1 3 . . . Treads 9 | . 15 10 . . . 16 8 7 9 8 6 6 6 Wheel 12 | . 12 11 21 22 21 10 13 14 9 10 13 13 9 Device 8 | . 14 11 11 3 . 1 7 7 7 9 13 13 10 Storage 8 | . 14 11 11 11 11 9 7 7 7 6 6 6 4 Hackware 5 | . . . . . . 9 7 7 7 11 3 . . Protection 10 | . . 10 11 18 22 16 14 15 15 6 6 6 4 Energy Gun 1 | . 14 . . . . . . . 4 1 . . . Energy Cannon 2 | . . . . . . . 5 7 7 4 . . 1 Ballistic Gun 10 | . 14 32 33 16 . 13 8 7 6 4 . . . Ballistic Cannon 9 | . . . . 14 33 12 6 6 2 12 13 13 23 Naked Turns 73 | . . . . . . . . . . . . . 73 Heaviest Build 209 | 12 89 103 105 153 108 110 131 131 131 202 202 193 209 Greatest Support 66 | 10 40 40 44 32 32 66 66 32 32 32 32 32 32 Greatest Overweight (x) 12 | 1 5 6 3 4 3 6 7 4 7 12 6 6 10 Average Overweight (x) 4 | 1 3 4 2 2 3 2 3 4 5 5 6 6 4 Largest Inventory Capacity 25 | 8 25 25 25 25 25 25 25 25 25 25 25 25 25 Average Capacity 24 | 8 20 25 25 25 25 25 25 25 25 25 25 25 23 Most Carried 25 | 7 25 25 25 25 25 25 25 25 25 25 25 25 25 Average Carried 23 | 6 15 24 24 24 25 24 24 24 24 23 24 25 21 Final Capacity 25 | 8 25 25 25 25 25 25 25 25 25 25 25 25 25 Final Carried 25 | 7 25 25 25 25 25 25 25 25 25 25 25 25 23 Class Distribution -------------------- 38% | Tank 23% | Scavenger-Tank 11% | Hacker-Skirmisher 9% | Mutant 5% | Executioner 3% | Scavenger-Skirmisher Dominant Class ---------------- Mutant | -10/Materials Tank | -9/Materials Tank | -9/Mines Tank | -9/Exiles Tank | -8/Mines Tank | -8/Materials Scavenger-Tank | -7/Factory Scavenger-Tank | -7/Lower Caves Tank | -7/Lower Caves Hacker-Skirmisher | -6/Factory Tank | -6/Lower Caves Tank | -6/Lower Caves Executioner | -5/Factory Resources | -11 -10 -9 -9 -9 -8 -8 -7 -7 -7 -6 -6 -6 -5 ----------- Run | Yrd Mat Mat Min Exi Min Mat Fac Low Low Fac Low Low Fac Matter Collected 9307 | 261 648 1450 125 . 140 1881 877 339 101 2554 140 40 751 Remotely . | . . . . . . . . . . . . . . Salvage Created 9520 | 117 708 1715 125 . 39 1626 777 294 75 2705 474 102 763 Parts 455 | 7 59 109 8 . 5 80 36 9 6 99 14 1 22 Haulers Intercepted 8 | . 2 2 . . . 1 1 . . 1 . . 1 Recyclers Shooed 16 | . 1 1 . . . 5 1 . . 7 . . 1 Parts Field Recycled . | . . . . . . . . . . . . . . Retrieved Matter . | . . . . . . . . . . . . . . Parts Self-Destructed 32 | . . . . . . . . 8 9 . 14 1 . Prevented 7 | . . . . . . . . . 7 . . . . Kills | -11 -10 -9 -9 -9 -8 -8 -7 -7 -7 -6 -6 -6 -5 ------- Run | Yrd Mat Mat Min Exi Min Mat Fac Low Low Fac Low Low Fac Combat Hostiles Destroyed 206 | . 19 34 3 . 2 26 16 8 4 61 15 3 15 Guns 68 | . 19 34 3 . . 3 4 1 1 3 . . . Cannons 91 | . . . . . 2 11 10 5 . 31 15 3 14 AOE 47 | . . . . . . 12 2 2 3 27 . . 1 Classes Destroyed 15 | 2 5 3 1 . 1 1 1 . . 1 . . . Worker 5 | . . . . . . 1 . . . 2 . . 2 Builder 8 | . 1 . . . . 3 . . . 2 . . 2 Tunneler 4 | 1 . . . . . 1 . . . 1 . . 1 Hauler 8 | . 2 2 . . . 1 1 . . 1 . . 1 Recycler 29 | 1 1 3 . . . 12 3 . . 6 . . 3 Operator 2 | . . 1 . . . 1 . . . . . . . Watcher 15 | . 2 3 . . . 4 . . . 4 . . 2 Swarmer 47 | . 12 7 . . 1 6 5 3 4 4 5 . . Grunt 95 | . 7 19 2 . . 16 1 3 . 33 9 3 2 Brawler 7 | . . 1 . . . . 1 . . 4 . . 1 Duelist 5 | . . . 1 . . . . 1 . 2 . . 1 Protector 3 | . . . . . . . . . . 3 . . . Sentry 22 | . . 7 . . . 4 2 . . 6 1 . 2 Hunter 6 | . . . . . 1 . . . . 2 . . 3 Programmer 21 | . . . . . . . 7 1 . 7 . . 6 Best Kill Streak 9 | 2 6 4 3 . 1 9 4 4 4 9 5 3 7 Combat Bots Only 7 | . 6 4 3 . 1 6 4 4 4 7 5 3 3 Max Kills in Single Turn 4 | 1 2 2 1 . 1 3 2 2 3 4 1 1 3 Gunslinging 1 | . 1 1 . . . . . . . . . . . Exploded 4 | . . . . . . 3 2 2 3 4 . . 1 Melee . | . . . . . . . . . . . . . . Uniques/NPCs Destroyed . | . . . . . . . . . . . . . . Combat | -11 -10 -9 -9 -9 -8 -8 -7 -7 -7 -6 -6 -6 -5 -------- Run | Yrd Mat Mat Min Exi Min Mat Fac Low Low Fac Low Low Fac Hostile Shots Fired 1019 | . 82 101 14 . 1 130 59 33 14 301 37 6 241 Missed 324 | . 27 25 5 . 1 38 19 11 9 97 12 4 76 Damage Taken 9850 | . 582 983 123 . . 1437 561 320 79 2982 216 20 2547 Core 1788 | . 96 117 55 . . 228 29 27 . 288 9 . 939 Absorbed by Shields 972 | . . . . . . . . . . 435 202 22 313 Regen/Repaired (Parts) 258 | . . . . . . . 258 . . . . . . Core Remaining (%) 72 | 100 61 . . . 57 58 . . 92 . . 65 . Volleys Fired 488 | 7 59 80 5 . 2 91 44 17 4 117 20 5 37 Largest 6 | 2 2 3 3 . 3 3 3 3 3 4 1 1 6 Hottest 299 | 60 60 75 73 . 126 126 141 141 173 234 40 40 299 Shots Fired 1314 | 14 117 238 15 . 6 231 124 47 9 299 45 14 155 Gun 577 | 14 117 237 15 . . 73 47 17 4 53 . . . Cannon 683 | . . 1 . . 6 145 76 29 3 209 45 14 155 Launcher 54 | . . . . . . 13 1 1 2 37 . . . Special . | . . . . . . . . . . . . . . Kinetic 1066 | 7 59 238 15 . 6 218 85 29 2 199 45 14 149 Thermal 188 | 7 58 . . . . . 38 17 5 63 . . . Explosive 54 | . . . . . . 13 1 1 2 37 . . . Electromagnetic 6 | . . . . . . . . . . . . . 6 Robot Hit Streak 20 | 6 8 10 14 . 18 18 13 6 5 15 13 10 20 Robot Miss Streak 9 | 1 5 5 . . . 9 4 5 2 8 3 1 5 Penetration Max 1 | . . . . . . 1 . 1 . . . . . Secondary Targets 7 | . 2 5 . . . . . . . . . . . Max Gunslinging Chain 1 | . 1 1 . . . . . . . . . . . Autonomous 94 | . . . . . . . . . . 34 25 9 26 Shots Hit Robots 771 | 12 69 137 13 . 4 103 72 25 7 193 33 12 91 Core Hits 462 | 3 38 56 4 . 2 65 24 12 6 199 14 4 35 Critical Kills 2 | . 1 . . . . . . 1 . . . . . Critical Parts Destroyed 2 | . . 1 . . . . . 1 . . . . . Critical Strikes 38 | . 1 1 . . . 11 4 2 . 6 5 . 8 Destroy 4 | . 1 1 . . . . . 2 . . . . . Blast 34 | . . . . . . 11 4 . . 6 5 . 8 Melee Attacks . | . . . . . . . . . . . . . . Impact . | . . . . . . . . . . . . . . Slashing . | . . . . . . . . . . . . . . Piercing . | . . . . . . . . . . . . . . Sneak Attacks . | . . . . . . . . . . . . . . Combat Hostiles . | . . . . . . . . . . . . . . Follow-up Attacks . | . . . . . . . . . . . . . . Damage Inflicted 30404 | 133 835 2438 232 . 90 4031 2189 775 270 11699 2019 651 5042 Guns 5881 | 133 835 2437 232 . . 780 440 236 83 705 . . . Cannons 15600 | . . . . . 90 1821 1504 398 52 5166 2019 651 3899 Explosions 8873 | . . . . . . 1387 245 141 135 5822 . . 1143 Melee . | . . . . . . . . . . . . . . Ramming 50 | . . 1 . . . 43 . . . 6 . . . Kinetic 18932 | 68 388 2437 232 . 90 2601 1354 460 41 4786 2019 651 3805 Thermal 2455 | 65 447 . . . . . 590 174 94 1085 . . . Explosive 8873 | . . . . . . 1387 245 141 135 5822 . . 1143 Electromagnetic 94 | . . . . . . . . . . . . . 94 Impact . | . . . . . . . . . . . . . . Slashing . | . . . . . . . . . . . . . . Piercing . | . . . . . . . . . . . . . . Highest Corruption 3 | . . . . . . . 3 . . 3 . . . Average Corruption 1 | . . . . . . . 1 . . 1 . . . Corruption Purged 7 | . . . . . . . 3 . . 4 . . . Corruption Blocked . | . . . . . . . . . . . . . . Effects 30 | . . . . . . . 14 . . 16 . . . Message Errors 9 | . . . . . . . 2 . . 7 . . . Matter Fused 6 | . . . . . . . 3 . . 3 . . . Heat Flow Errors 7 | . . . . . . . 4 . . 3 . . . Energy Discharges 1 | . . . . . . . . . . 1 . . . Data Loss (minor) 4 | . . . . . . . 2 . . 2 . . . Misfires 1 | . . . . . . . 1 . . . . . . Alerts 1 | . . . . . . . 1 . . . . . . Weapon Failures 1 | . . . . . . . 1 . . . . . . Overload Shots . | . . . . . . . . . . . . . . Overflow Damage 1239 | . . . . . . 72 101 15 1 467 245 . 338 Projectiles 1099 | . . . . . . 68 101 9 1 373 245 . 302 Explosions 140 | . . . . . . 4 . 6 . 94 . . 36 Melee . | . . . . . . . . . . . . . . Knockbacks 98 | . . . . . . 23 7 2 . 36 8 2 20 Impact . | . . . . . . . . . . . . . . Kinetic 95 | . . . . . . 22 7 2 . 34 8 2 20 Secondary 3 | . . . . . . 1 . . . 2 . . . Self-Inflicted Damage 414 | . . . . . . 43 . . 42 256 . . 73 Shots 12 | . . . . . . 1 . . 1 9 . . 1 Rammed 6 | . . 1 . . . 4 . . . 1 . . . Targets Rammed 6 | . . 1 . . . 4 . . . 1 . . . Kicked . | . . . . . . . . . . . . . . Crushed . | . . . . . . . . . . . . . . Highest Temperature 545 | 20 36 226 181 . 84 407 256 146 21 545 . . 419 Average Temperature 84 | 20 13 54 92 . 45 97 29 46 8 88 . . 192 Received Heat Transfer 2491 | . 96 462 48 . . 837 30 126 . 720 59 4 109 Effects 24 | . . . . . . 5 . . . 7 . . 12 Shutdowns 4 | . . . . . . 1 . . . 1 . . 2 Energy Bleed 3 | . . . . . . 2 . . . 1 . . . Interference 10 | . . . . . . 1 . . . 1 . . 8 Matter Decay 1 | . . . . . . 1 . . . . . . . Short Circuit 1 | . . . . . . . . . . . . . 1 Damage (minor) 1 | . . . . . . . . . . . . . 1 Damage (major) 4 | . . . . . . . . . . 4 . . . Siege Activations . | . . . . . . . . . . . . . . Robots Corrupted 1 | . . . . . . . . . . . . . 1 Combat Hostiles . | . . . . . . . . . . . . . . Parts Fried 1 | . . . . . . . . . . . . . 1 Impact Corruptions 1 | . . . . . . . . . . 1 . . . Robots Melted . | . . . . . . . . . . . . . . Combat Hostiles . | . . . . . . . . . . . . . . Parts Melted 4 | . 2 . . . . . . . . 2 . . . Heat Transferred 4038 | 150 975 . . . . . 740 222 174 1777 . . . Parts Sabotaged 3 | . . . . . . . . . . 3 . . . Parts Stolen 2 | . . . . . . . . . 2 . . . . Parts Stripped . | . . . . . . . . . . . . . . Power Chain Reactions . | . . . . . . . . . . . . . . Alert | -11 -10 -9 -9 -9 -8 -8 -7 -7 -7 -6 -6 -6 -5 ------- Run | Yrd Mat Mat Min Exi Min Mat Fac Low Low Fac Low Low Fac Peak Influence 1538 | 10 310 564 178 . 210 359 301 . . 1538 . . 1411 Initial 469 | . 6 57 98 . . . 44 . . . . . 469 Average 296 | 4 187 228 41 . 87 113 88 . . 536 . . 750 Maximum Alert Level 4 | . 1 2 . . 1 1 1 . . 4 . . 4 Low Security (%) 51 | 100 41 39 100 . 86 83 86 . . 21 . . . Level 1 19 | . 58 46 . . 13 16 13 . . 11 . . 1 Level 2 18 | . . 13 . . . . . . . 43 . . 54 Level 3 7 | . . . . . . . . . . 14 . . 41 Level 4 2 | . . . . . . . . . . 8 . . 3 Level 5 . | . . . . . . . . . . . . . . High Security . | . . . . . . . . . . . . . . Max Security . | . . . . . . . . . . . . . . Squads Dispatched 55 | . 4 3 . . . 3 9 . . 27 . . 9 Investigation 10 | . 4 1 . . . . 1 . . 4 . . . Extermination 15 | . . . . . . . 7 . . 6 . . 2 Reinforcement 8 | . . 1 . . . 3 1 . . 1 . . 2 Assault 9 | . . 1 . . . . . . . 6 . . 2 Garrison 13 | . . . . . . . . . . 10 . . 3 Intercept . | . . . . . . . . . . . . . . Searches Triggered . | . . . . . . . . . . . . . . Construction Impeded 3 | . . . . . . 2 . . . 1 . . . Haulers Reinforced . | . . . . . . . . . . . . . . Active Scanning Responses . | . . . . . . . . . . . . . . Cargo Convoy Interrupts . | . . . . . . . . . . . . . . Stealth | -11 -10 -9 -9 -9 -8 -8 -7 -7 -7 -6 -6 -6 -5 --------- Run | Yrd Mat Mat Min Exi Min Mat Fac Low Low Fac Low Low Fac Distress Signals 11 | . . 2 . . . 6 . . . 1 . . 2 Communications Jammed . | . . . . . . . . . . . . . . Distress Signals . | . . . . . . . . . . . . . . Times Spotted 301 | . 31 46 3 . 3 35 20 8 5 78 15 3 54 Peak Tracking Total 24 | . 4 4 3 . 3 5 4 4 4 6 5 3 24 Tactical Retreats 16 | . 4 2 . . . 1 1 . . 2 . . 6 Traps | -11 -10 -9 -9 -9 -8 -8 -7 -7 -7 -6 -6 -6 -5 ------- Run | Yrd Mat Mat Min Exi Min Mat Fac Low Low Fac Low Low Fac Traps Triggered 14 | . 3 1 . . . 1 3 . . 6 . . . Indirectly . | . . . . . . . . . . . . . . Trap Hack Attempts . | . . . . . . . . . . . . . . Triggered . | . . . . . . . . . . . . . . Disarmed . | . . . . . . . . . . . . . . Reprogrammed . | . . . . . . . . . . . . . . Reused . | . . . . . . . . . . . . . . Traps Extracted . | . . . . . . . . . . . . . . Installed . | . . . . . . . . . . . . . . Triggered 4 | . . . 1 . . . . . 3 . . . . Machines | -11 -10 -9 -9 -9 -8 -8 -7 -7 -7 -6 -6 -6 -5 ---------- Run | Yrd Mat Mat Min Exi Min Mat Fac Low Low Fac Low Low Fac Machines Disabled 50 | . 1 1 . . . 4 1 . 1 15 . . 27 Max in Single Turn 4 | . 1 1 . . . 2 1 . 1 2 . . 4 Garrison Access 3 | . . . . . . . 1 . . 1 . . 1 Machines Repaired . | . . . . . . . . . . . . . . Machines Dismantled . | . . . . . . . . . . . . . . Machines Sabotaged . | . . . . . . . . . . . . . . Overloaded Fab Kills . | . . . . . . . . . . . . . . Hacking | -11 -10 -9 -9 -9 -8 -8 -7 -7 -7 -6 -6 -6 -5 --------- Run | Yrd Mat Mat Min Exi Min Mat Fac Low Low Fac Low Low Fac Machines Accessed 54 | . 10 10 1 . . 7 9 . . 14 1 . 2 Terminals 31 | . 8 7 . . . 5 3 . . 7 . . 1 Fabricators 2 | . . . . . . . . . . 2 . . . Repair Stations 5 | . . . . . . . 3 . . 2 . . . Recycling Units 3 | . 2 1 . . . . . . . . . . . Scanalyzers 7 | . . 2 . . . 2 2 . . 1 . . . Garrison Access 4 | . . . . . . . 1 . . 2 . . 1 Total Hacks 184 | . 35 53 1 . . 20 25 . . 45 1 . 4 Successful 104 | . 15 36 1 . . 17 15 . . 17 1 . 2 Failed 79 | . 19 17 . . . 3 10 . . 28 . . 2 Catastrophic 13 | . 3 1 . . . . 1 . . 7 . . 1 Database Lockouts 1 | . 1 . . . . . . . . . . . . Manual 82 | . 30 25 . 1 . 10 9 . . 5 . . 2 Terminals 104 | . 27 33 . . . 12 11 . . 18 . . 3 Fabricators 6 | . . . . . . . . . . 6 . . . Repair Stations 17 | . . . . . . . 8 . . 9 . . . Recycling Units 9 | . 8 1 . . . . . . . . . . . Scanalyzers 36 | . . 19 . . . 8 4 . . 5 . . . Garrison Access 10 | . . . . . . . 2 . . 7 . . 1 Terminal Hacks 32 | . 5 12 1 . . 6 2 . . 5 1 . . Record 2 | . . . . . . . . . . 2 . . . Part Schematic 3 | . 2 1 . . . . . . . . . . . Robot Analysis 3 | . 2 1 . . . . . . . . . . . Prototype ID Bank 1 | . . 1 . . . . . . . . . . . Open Door 2 | . . . 1 . . . . . . . 1 . . Branch Access Points 2 | . . . . . . . 1 . . 1 . . . Terminal Index 4 | . 1 1 . . . 1 1 . . . . . . Repair Station Index 1 | . . . . . . 1 . . . . . . . Alert Level 5 | . . 2 . . . 2 . . . 1 . . . Unreport Threat 6 | . . 3 . . . 2 . . . 1 . . . Security Status 1 | . . 1 . . . . . . . . . . . Patrol Status 1 | . . 1 . . . . . . . . . . . Hauler Manifests 1 | . . 1 . . . . . . . . . . . Fabricator Hacks 5 | . . . . . . . . . . 5 . . . Network Status 1 | . . . . . . . . . . 1 . . . Load Schematic 2 | . . . . . . . . . . 2 . . . Build 2 | . . . . . . . . . . 2 . . . Repair Station Hacks 10 | . . . . . . . 8 . . 2 . . . Scan Component 6 | . . . . . . . 4 . . 2 . . . Repair 4 | . . . . . . . 4 . . . . . . Recycling Unit Hacks 5 | . 4 1 . . . . . . . . . . . Report Inventory 3 | . 2 1 . . . . . . . . . . . Retrieve Components 2 | . 2 . . . . . . . . . . . . Scanalyzer 34 | . . 19 . . . 8 3 . . 4 . . . Insert Component 18 | . . 9 . . . 4 2 . . 3 . . . Analyze 16 | . . 10 . . . 4 1 . . 1 . . . Garrison Access Hacks 3 | . . . . . . . 1 . . 1 . . 1 Seal Access 3 | . . . . . . . 1 . . 1 . . 1 Unauthorized Hacks 15 | . 6 4 . . . 3 1 . . . . . 1 Terminals 13 | . 4 4 . . . 3 1 . . . . . 1 Botnet 13 | . 4 4 . . . 3 1 . . . . . 1 Fabricators . | . . . . . . . . . . . . . . Repair Stations . | . . . . . . . . . . . . . . Recycling Units 2 | . 2 . . . . . . . . . . . . Tunnel 2 | . 2 . . . . . . . . . . . . Scanalyzers . | . . . . . . . . . . . . . . Garrison Access . | . . . . . . . . . . . . . . Data Cores Recovered . | . . . . . . . . . . . . . . Used . | . . . . . . . . . . . . . . Hacking Detections 47 | . 10 9 . . . 5 8 . . 14 . . 1 Full Trace Events 5 | . 1 1 . . . . . . . 3 . . . Feedback Events . | . . . . . . . . . . . . . . Feedback Blocked . | . . . . . . . . . . . . . . Robot Schematics Acquired . | . . . . . . . . . . . . . . Robots Built . | . . . . . . . . . . . . . . Authchips . | . . . . . . . . . . . . . . Time . | . . . . . . . . . . . . . . Total Robot Build Rating . | . . . . . . . . . . . . . . Part Schematics Acquired 15 | . 2 8 . . . 3 1 . . 1 . . . Parts Built 2 | . . . . . . . . . . 2 . . . Authchips . | . . . . . . . . . . . . . . Time 168 | . . . . . . . . . . 168 . . . Total Part Build Rating 8 | . . . . . . . . . . 8 . . . Parts Repaired 4 | . . . . . . . 4 . . . . . . Time 171 | . . . . . . . 171 . . . . . . Parts Recycled . | . . . . . . . . . . . . . . Recycled Matter . | . . . . . . . . . . . . . . Retrieved Matter . | . . . . . . . . . . . . . . Retrieved Components 13 | . 13 . . . . . . . . . . . . Parts Scanalyzed 12 | . . 7 . . . 3 1 . . 1 . . . Part Schematics Acquired 12 | . . 7 . . . 3 1 . . 1 . . . Parts Damaged 1 | . . . . . . 1 . . . . . . . Bothacking | -11 -10 -9 -9 -9 -8 -8 -7 -7 -7 -6 -6 -6 -5 ------------ Run | Yrd Mat Mat Min Exi Min Mat Fac Low Low Fac Low Low Fac Used RIF Installer . | . . . . . . . . . . . . . . Robots Hacked . | . . . . . . . . . . . . . . Non-combat . | . . . . . . . . . . . . . . Combat . | . . . . . . . . . . . . . . Robot Hacks Applied . | . . . . . . . . . . . . . . Relay Couplers Released . | . . . . . . . . . . . . . . Fabnet Peak Effective % . | . . . . . . . . . . . . . . Robots Rewired . | . . . . . . . . . . . . . . Allies Hacked . | . . . . . . . . . . . . . . Hacks Repelled . | . . . . . . . . . . . . . . Allies | -11 -10 -9 -9 -9 -8 -8 -7 -7 -7 -6 -6 -6 -5 -------- Run | Yrd Mat Mat Min Exi Min Mat Fac Low Low Fac Low Low Fac Total Allies 3 | . . . 3 . . . . . . . . . . Largest Group 3 | . . . 3 3 3 1 . . . . . . . Highest-Rated Group 40 | . . . 40 40 40 16 . . . . . . . Highest-Rated Ally 16 | . . . 16 16 16 16 . . . . . . . Total Orders . | . . . . . . . . . . . . . . Ally Attacks 53 | . . . . . 20 33 . . . . . . . Total Damage 539 | . . . . . 225 314 . . . . . . . Kills 9 | . . . . . 7 2 . . . . . . . Allies Corrupted . | . . . . . . . . . . . . . . Allies Melted . | . . . . . . . . . . . . . . Intel | -11 -10 -9 -9 -9 -8 -8 -7 -7 -7 -6 -6 -6 -5 ------- Run | Yrd Mat Mat Min Exi Min Mat Fac Low Low Fac Low Low Fac Robot Analysis Total 3 | . 2 1 . . . . . . . . . . . Derelict Logs Recovered 3 | . . . 3 . . . . . . . . . . Drone Launches . | . . . . . . . . . . . . . . Drone Recoveries . | . . . . . . . . . . . . . . Decoded 0b10 Intel 43 | . . . . . . . . . . . . . 43 Traps 8 | . . . . . . . . . . . . . 8 Emergency Access 1 | . . . . . . . . . . . . . 1 Items 27 | . . . . . . . . . . . . . 27 Machines 4 | . . . . . . . . . . . . . 4 Patrols 2 | . . . . . . . . . . . . . 2 Guards 1 | . . . . . . . . . . . . . 1 Exploration | -11 -10 -9 -9 -9 -8 -8 -7 -7 -7 -6 -6 -6 -5 ------------- Run | Yrd Mat Mat Min Exi Min Mat Fac Low Low Fac Low Low Fac Turns Passed 25085 | 93 2003 2674 1109 379 816 3491 3606 614 1063 5733 1309 202 1993 Spaces Moved 12321 | 60 1047 1205 720 253 542 1642 1684 341 558 2499 664 102 1004 Core 257 | . . . . . . . . . . . . . 257 Treads 566 | . 49 3 5 . . 498 11 . . . . . . Legs . | . . . . . . . . . . . . . . Wheels 11498 | 60 998 1202 715 253 542 1144 1673 341 558 2499 664 102 747 Hover . | . . . . . . . . . . . . . . Flight . | . . . . . . . . . . . . . . Fastest Speed 50 | 95 95 145 145 130 145 130 145 160 160 145 190 190 50 Average Speed 164 | 95 148 175 146 144 145 169 148 160 186 177 190 190 155 Slowest Speed 650 | 95 320 320 305 160 145 465 650 160 205 280 190 190 250 Overloaded Moves . | . . . . . . . . . . . . . . Propulsion Burnouts . | . . . . . . . . . . . . . . Robots Hopped . | . . . . . . . . . . . . . . Cave-ins Triggered . | . . . . . . . . . . . . . . Exploration Rate (%) 54 | 4 99 75 98 60 83 62 27 45 49 47 76 15 25 Regions Visited 13 Branch Regions 7 Pre-discovered Areas 2 | . 2 . . . . . . . . . . . . Known Exits Taken 2 | . . . . . . . 1 . . 1 . . . Unknown Exits Taken 11 | 1 1 1 1 1 1 1 . 1 1 . 1 1 . Scrap Searched 17 | . . . 2 . 1 . . 3 3 . 8 . . Spaces Dug 73 | . . . . . . 40 . . . 33 . . . Terrain Destroyed 597 | . . . . . 2 147 19 25 23 211 14 4 152 Melee . | . . . . . . . . . . . . . . Projectile 162 | . . . . . 2 46 13 11 . 34 14 4 38 AOE 435 | . . . . . . 101 6 14 23 177 . . 114 Terrain Rammed . | . . . . . . . . . . . . . . Walls Destroyed . | . . . . . . . . . . . . . . Machines Disabled . | . . . . . . . . . . . . . . Actions | -11 -10 -9 -9 -9 -8 -8 -7 -7 -7 -6 -6 -6 -5 --------- Run | Yrd Mat Mat Min Exi Min Mat Fac Low Low Fac Low Low Fac Total 16226 | 79 1371 1642 770 267 569 2152 2690 373 571 3597 696 106 1343 Wait 2761 | 8 202 215 22 1 12 340 874 4 . 814 . . 269 Move 12308 | 59 1046 1204 719 252 541 1641 1683 340 557 2498 663 101 1004 Hop . | . . . . . . . . . . . . . . Pick Up 181 | 1 27 43 8 2 3 14 22 4 3 45 4 . 5 Fast Attach 22 | 1 . 1 1 2 1 3 3 . 1 6 1 . 2 Attach 45 | . 2 2 . 2 . 3 4 1 3 19 1 . 8 Detach 6 | . . . . 1 . . . . . 4 1 . . Swap 244 | 3 25 51 6 1 6 43 36 4 2 52 1 . 14 Drop 160 | . 10 45 9 6 4 13 19 3 1 41 5 . 4 Fire 488 | 7 59 80 5 . 2 91 44 17 4 117 20 5 37 Melee . | . . . . . . . . . . . . . . Ram 1 | . . . . . . 1 . . . . . . . Kick . | . . . . . . . . . . . . . . Crush 5 | . . 1 . . . 3 . . . 1 . . . Escape Stasis 3 | . . . . . . . 3 . . . . . . Rewire 2 | . . . . . . . 2 . . . . . . Trap . | . . . . . . . . . . . . . . Miscellaneous . | . . . . . . . . . . . . . . Route ------- -11/Scrapyard -10/Materials (discovered 4 exits: *Mat x3 / [*Min]) -9/Materials (discovered 3 exits: *Mat x2 / *Min) -9/Mines (discovered 3 exits: *Mat x2 / *Exi) -9/Exiles -8/Mines -8/Materials -7/Factory (discovered 4 exits: *Fac / Sto / *Low x2) -7/Lower Caves -7/Lower Caves -6/Factory (discovered 2 exits: *Low x2) -6/Lower Caves -6/Lower Caves -5/Factory History --------- Turn | Location | Event 4 | -11/Scrapyard | Discovered new exit (range 3) 94 | -11/Scrapyard | Entered Materials 314 | -10/Materials | Build established: Mutant 318 | -10/Materials | Discovered new exit (range 16) 602 | -10/Materials | Discovered new exit (range 8) 703 | -10/Materials | Discovered new exit (range 12) 1094 | -10/Materials | Central database locked down 1194 | -10/Materials | Derelicts attacked the area 1400 | -10/Materials | Discovered new exit (range 16) 2097 | -10/Materials | Entered another Materials area 2097 | -9/Materials | Evolved 2 slots: Utility x1, Weapon x1 2467 | -9/Materials | Build established: Tank 2528 | -9/Materials | Discovered new exit (range 5) 2981 | -9/Materials | Discovered new exit (range 7) 4097 | -9/Materials | First assault squad dispatched 4510 | -9/Materials | Discovered new exit (range 5) 4771 | -9/Materials | Entered Mines 4779 | -9/Mines | Learned Materials security intel 4843 | -9/Mines | Discovered new exit (range 6) 4873 | -9/Mines | Met a Derelict who couldn't figure out how to use a Trap Extractor 5111 | -9/Mines | Discovered new exit (range 10) 5617 | -9/Mines | Assisted by bots powering up and referring to "LRC-V3" 5620 | -9/Mines | Learned Materials garrison access intel 5640 | -9/Mines | Learned Materials terminal intel 5823 | -9/Mines | Found a hidden stash of uninstalled traps 5868 | -9/Mines | Deemed a non-threat by the Exiles lab entrance 5869 | -9/Mines | Discovered new exit (range 5) 5880 | -9/Mines | Entered Exiles 5880 | -9/Exiles | Accompanied by 3 allies 5923 | -9/Exiles | Met 8R-AWN 5944 | -9/Exiles | Met EX-HEX 5988 | -9/Exiles | Met EX-BIN 6008 | -9/Exiles | Aligned with FarCom system 6010 | -9/Exiles | Given EX-Vault access code 6053 | -9/Exiles | Opened EX-Vault 6079 | -9/Exiles | Found Prototype Ballistic Cannon 6079 | -9/Exiles | Identified AWS/Autocannon 6121 | -9/Exiles | Exiles lab attacked by MAIN.C 6240 | -9/Exiles | Discovered new exit (range 14) 6259 | -9/Exiles | Left Exiles lab with AWS/Autocannon 6259 | -9/Exiles | Entered Mines 6259 | -8/Mines | Accompanied by 3 allies 6704 | -8/Mines | Discovered new exit (range 11) 7075 | -8/Mines | Entered Materials 7075 | -8/Materials | Accompanied by 1 ally 7075 | -8/Materials | Evolved 2 slots: Propulsion x1, Utility x1 7077 | -8/Materials | Loaded intel: 12 terminal locations 7078 | -8/Materials | Loaded intel: 1 garrison access location 7604 | -8/Materials | Discovered new exit (range 15) 7770 | -8/Materials | Build established: Skirmisher 8381 | -8/Materials | Build established: Tank 9632 | -8/Materials | Build established: Scavenger-Tank 10566 | -8/Materials | Entered Factory 10566 | -7/Factory | Evolved 2 slots: Power x1, Utility x1 10664 | -7/Factory | Repaired Broken Med. Treads 10709 | -7/Factory | Repaired Gauss Cannon 11434 | -7/Factory | Discovered new exit (range 8) 13100 | -7/Factory | Repaired System Restoration Module 13133 | -7/Factory | Identified exit to Storage 13133 | -7/Factory | Identified exit to Lower Caves 13190 | -7/Factory | Discovered new exit (range 8) 13712 | -7/Factory | Repaired Gauss Rifle 14172 | -7/Factory | Entered Lower Caves 14584 | -7/Lower Caves | Discovered new exit (range 8) 14786 | -7/Lower Caves | Entered another Lower Caves area 14942 | -7/Lower Caves | Discovered new exit (range 13) 15464 | -7/Lower Caves | Build established: Tank 15849 | -7/Lower Caves | Entered Factory 15849 | -6/Factory | Evolved 2 slots: Utility x1, Weapon x1 16155 | -6/Factory | Build established: Hacker-Tank 16483 | -6/Factory | Garrison activated, responded to threat 16759 | -6/Factory | Build established: Hacker-Skirmisher 17102 | -6/Factory | Garrison activated, responded to threat 17135 | -6/Factory | Destroyed 7 combat bots 17714 | -6/Factory | Build established: Scavenger-Skirmisher 17853 | -6/Factory | Identified exit to Lower Caves 17861 | -6/Factory | Garrison activated, responded to threat 17949 | -6/Factory | First assault squad dispatched 18173 | -6/Factory | Garrison activated, responded to threat 18244 | -6/Factory | Lost 6 parts (2p2n1u1w) 18538 | -6/Factory | Build established: Hacker-Skirmisher 18842 | -6/Factory | Fabricated Hrd. Heavy Armor Plating? 19288 | -6/Factory | Fabricated Hrd. Heavy Armor Plating? 20527 | -6/Factory | Build established: Tank 20830 | -6/Factory | Build established: Scavenger-Tank 21399 | -6/Factory | Build established: Tank 21582 | -6/Factory | Entered Lower Caves 22648 | -6/Lower Caves | Attracted the attention of an 0b10 checkpoint 22755 | -6/Lower Caves | Discovered new exit (range 12) 22891 | -6/Lower Caves | Entered another Lower Caves area 23052 | -6/Lower Caves | Discovered new exit (range 12) 23093 | -6/Lower Caves | Entered Factory 23093 | -5/Factory | Evolved 2 slots: Weapon x2 23400 | -5/Factory | Build established: Executioner 23604 | -5/Factory | Garrison activated, responded to threat 24749 | -5/Factory | Build established: Scavenger-Executioner 24893 | -5/Factory | First assault squad dispatched 24955 | -5/Factory | Released all parts (14) 25019 | -5/Factory | Core integrity fell below 50% 25050 | -5/Factory | Core integrity fell below 20% 25086 | -5/Factory | Self-destructed Last Messages --------------- 24975_ Acquired 9 matter. 24976_ Acquired 1 matter. 24977_ Acquired 3 matter. 25008_ C-30 ARC bursts open, deploying its payload. 25008_ S-27 Virus unfolds itself. 25010_ Arm. Treads destroyed. 25014_ Imp. Medium Treads destroyed. 25014_ O-24 Administrator sends out distress signal. 25014_ O-24 Administrator: "IFF HANDSHAKE FAILED. SECURING TERMINAL." 25015_ Penetrated by Slug. 25017_ Slug penetrates Wall. 25018_ Penetrated by Slug. 25026_ ALERT: Hostiles spotted, dispatching reinforcements to Terminal F015. 25036_ S-27 Virus suffers critical hit (Destroy). 25057_ O-16 Technician: "IFF HANDSHAKE FAILED. SECURING TERMINAL." 25057_ S-27 Virus destroyed. 25061_ ALERT: Hostiles spotted, dispatching reinforcements to Terminal F004. 25076_ W-25 Informer sends out distress signal. Map ----- +----------------------------------------------------+ | ?????????????????????????????????????????????????? | | ?????????????????????????????????????????????????? | | ?????????????????????????????????????????????????? | | ?????????????????????????????????????????????????? | | ?????????????????????????????????????????????????? | | ?????????????????????????????????????????????????? | | ?????????????????????????????????????????????????? | | ?????????????????????????????????????????????????? | | ?????????????????????????????????????????????????? | | ?????????????????????????????????????????????????? | | ?????????????????????????????????????????????????? | | ?????????????????????????????????????????????????? | | ?????????????????????????????????????????????????? | | ?????????????????????????????????????????????????? | | ?????????????????????????????????????????????????? | | ?????????????????????????????????????????????????? | | ???????????????????????###############???????????? | | ???????????????????????# # #???????????? | | ???????????????????????# # #??????##???? | | ???????????????????????# ! # #?????? ???? | | ???????????????????????# # %!= #?????? ??? | | ???????????????????????# # !!= #?????? ""? | | ???????????????????????# !# !!= #?????? S" | | ????????????##### ????# #?? #????? """ | | ?????????! g ###/#????? ?? ? """ | | ????????? H w= k@########+##? | | ????????? ### k ##? | | ????????????##### ??????# s + """ | | ????????????????????????# ## """"" | | ????????????????#########+##### T#????"""" | | ????????????????# #???# #?????? ? | | ????????????????# """"#???# ##########+### | | ????????????????# """"#???# ! | | ????????????????# """"#???# | | ????????????????#[ """"#???# """ """ | | ????????????????# """"#???####### """ """ | | ????????????????# ??"""??????????# """ """ | | ????????????????? ?????????????????# # | | ????????????????????????????????????# """ """ # | | ???????????????????????????????????? """ """ # | | ??????????????????????????????????? """ """ # | | ??????????????????????????????????? # | | ????????????????????????????g????? # | | ?????????????????????????????????? # | | ?????????????????????????????????? #######+#### | | ?????????????????????????????????? ???????????? | | ??????????????????????????????????? ???????????? | | ???????????????????????????????????? ???????????? | | ?????????????????????????????????????????????????? | | ?????????????????????????????????????????????????? | +----------------------------------------------------+ Best States ------------- Heat Dissipation 67 Coolant Potential 50 Energy Generation 34 Energy Capacity 510 Matter Stores 300 Matter Capacity 300 Sight Range 16 Terrain Scan Density 10 ECM Strength 2 EM Shielding 2 Armor Coverage 600 Evasion (%) 50 Recoil Reduction 3 Offensive Hacking 10 Defensive Hacking 10 Item Schematics ----------------- Huge Storage Unit | -10/Materials | Hacked Hcp. Matter Pod | -10/Materials | Hacked Lgt. Treads | -9/Materials | Hacked Mni. Grenade Launcher | -9/Materials | Scanalyzed Imp. Light Armor Plating | -9/Materials | Scanalyzed Imp. Treads | -9/Materials | Scanalyzed Disposable Heat Sink | -9/Materials | Scanalyzed Imp. Light Cannon | -9/Materials | Scanalyzed Lrn. Tractor Beam | -9/Materials | Scanalyzed Com. Wheel | -9/Materials | Scanalyzed Med. Treads | -8/Materials | Scanalyzed Kinecellerator | -8/Materials | Scanalyzed Missile Launcher | -8/Materials | Scanalyzed System Restoration Module | -7/Factory | Scanalyzed Hrd. Heavy Armor Plating | -6/Factory | Scanalyzed Robot Schematics ------------------ None Fabricated ------------ Hrd. Heavy Armor Plating | x1 | -6/Factory Hrd. Heavy Armor Plating | x1 | -6/Factory Alien Tech Used ----------------- None Achievements -------------- Respectable Loadout Challenges ------------ None Game ------ Seed SpikedMobileGreatsword Manual? 0 Play Time 04:09:27 Cumulative 41.5 hours Start 2024.04.23 @ 05:58:25 End 2024.04.24 @ 05:20:18 Sessions 7 Manual Loads 0 Difficulty Rogue Special Mode None Game No. 25 Rogue 25 Adventurer 0 Explorer 0 Win Type - Total 0 Types 0/0/0/0/0/0/0/0/0 Lore% 23 Gallery% 28 Achievement% 26 Wizard Run 0 Options --------- Layout 0 ASCII 0 Keyboard 1 Movement Vi Keybinds 1 Fullscreen 1 Font 18/TerminusBold Map View 76x50 Zoom Use 0% Tactical HUD 1 Map Filters NONE Filters LOW_CONTRAST(13,24,33) Steam 1 RUN: 191f8625-a0bb-455d-bbc0-4c68d3ebada9